[Event "Slovakia Open Piestany-A 2022"]
[Site "Piestany"]
[Date "2022.07.18"]
[Round "9.2"]
[White "Niedbala, Bartlomiej"]
[Black "Schitco, Ivan"]
[Result "1/2-1/2"]
[ECO "B56"]
[WhiteElo "2381"]
[BlackElo "2490"]
[Annotator "TA"]
[PlyCount "60"]
[EventDate "2022.07.12"]
[EventType "swiss"]
[EventCountry "SVK"]
[SourceTitle "playchess.com"]
[Source "ChessBase"]
[SourceQuality "1"]
[TimeControl "40/5400+30:1800+30"]

{[%evp 20,60,22,21,24,22,31,17,17,29,31,32,11,19,27,18,19,16,32,16,22,14,35,31,23,23,36,31,31,30,24,0,0,0,0,0,0,0,0,0,0,0,7]} 1. e4 {[%emt 0:02:47]} c5 {[%emt 0:00:09]} 2. Nf3 {[%emt 0:00:09]} d6 {[%emt 0:00:15]} 3. d4 {[%emt 0:00:04]} cxd4 {[%emt 0:00:07]} 4. Nxd4 {[%emt 0:00:04]} Nf6 {[%emt 0:00:15]} 5. Nc3 {[%emt 0:00:01]} Nc6 {[%emt 0:00:18]} 6. f3 {[%emt 0:00:07]} e5 {[%emt 0:00:47]} 7. Nb3 {[%emt 0:00:52]} Be7 {[%emt 0:02:04]} 8. Be3 {[%emt 0:01:44]} O-O {[%emt 0:01:08]} 9. Qd2 {[%emt 0:00:02]} Be6 {[%emt 0:00:59]} 10. O-O-O {[%emt 0:01:00]} a5 {[%emt 0:00:37]} 11. Bb5 {[%emt 0:00:06]} Nb4 {[%emt 0:00:14][%cal Ob4a2] B56: Classical Sicilian: Unusual Lines.} 12. Kb1 {[%emt 0:07:10]} d5 {[%emt 0:02:16]} 13. exd5 {[%emt 0:02:11]} Nbxd5 {[%emt 0:00:19]} 14. Nxd5 {[%emt 0:00:06]} Nxd5 {[%emt 0:00:06]} 15. Bc4 $1 {[%emt 0:01:00][%cal Rc4d5]} Nxe3 {[%emt 0:00:55]} 16. Qxe3 {[%emt 0:00:10]} Qc8 {[%emt 0:00:04]} 17. Bxe6 {[%emt 0:00:06]} Qxe6 {[%emt 0:00:05]} 18. Rhe1 {[%emt 0:01:44]} Rfd8 {[%emt 0:02:35] [#]} 19. a3 $146 {[%emt 0:13:49]} ({Predecessor:} 19. Qe4 b6 20. Nc1 f6 21. Rd3 Rac8 22. f4 Rc4 23. Rxd8+ Bxd8 24. Qe3 Bc7 25. b3 {1-0 (49) Lobo,A (2093)-Salguera,A (2117) ICCF email 2018}) 19... b6 {[%emt 0:00:39]} 20. Nc1 {[%emt 0:06:41][%cal Bb3c1,Bc1d3,Bd3f4][%mdl 32]} Bf6 {[%emt 0:00:23]} 21. Rxd8+ {[%emt 0:08:59]} Rxd8 {[%emt 0:00:10]} 22. Nd3 {[%emt 0:00:02][%cal Rd3e5]} g6 {[%emt 0:06:34]} 23. f4 {[%emt 0:05:58]} ({Don't blunder} 23. Nxe5 $2 Bxe5 24. g3 Rd5 $19) 23... exf4 $1 {[%emt 0:02:13]} 24. Qxe6 {[%emt 0:02:31]} fxe6 {[%emt 0:00:05]} 25. Nxf4 $14 {[%emt 0:08:50][%mdl 4096] Endgame KRB-KRN} Kf7 {[%emt 0:04:22] The position is equal.} 26. Nd3 {[%emt 0:02:20]} ({Not} 26. Nxe6 $2 Re8 27. Ng5+ Bxg5 $19) ({But not} 26. Rxe6 $2 g5 27. Ka2 gxf4 $19) 26... Rd5 {[%emt 0:00:59]} 27. Re2 {[%emt 0:05:33]} g5 {[%emt 0:04:35]} 28. Nf2 {[%emt 0:01:30]} h5 {[%emt 0:03:52]} 29. h3 {[%emt 0:00:37]} b5 {[%emt 0:04:44]} 30. c3 {[%emt 0:01:30]} Be7 {[%emt 0:08:13] Weighted Error Value: White=0.03 (flawless) /Black=0.02 (flawless)} 1/2-1/2

[Event "Slovakia Open Piestany-A 2022"]
[Site "Piestany"]
[Date "2022.07.18"]
[Round "9.3"]
[White "Haring, Filip"]
[Black "Omelja, Artem"]
[Result "1/2-1/2"]
[ECO "C54"]
[WhiteElo "2451"]
[BlackElo "2478"]
[Annotator "TA"]
[PlyCount "67"]
[EventDate "2022.07.12"]
[EventType "swiss"]
[EventCountry "SVK"]
[SourceTitle "playchess.com"]
[Source "ChessBase"]
[SourceQuality "1"]
[TimeControl "40/5400+30:1800+30"]

{[%evp 10,67,10,7,12,0,0,0,13,0,18,14,13,13,28,36,30,-6,-6,-16,-6,-6,-12,-8,-8,-13,-3,-45,-47,-197,-176,-185,0,-175,-150,-610,-85,-91,-85,-90,-77,-77,-77,-78,-91,-88,-95,-375,0,0,0,0,0,0,0,0,0,0,0,0]} 1. e4 {[%emt 0:00:05]} e5 {[%emt 0:05:08]} 2. Nf3 {[%emt 0:00:08]} Nc6 {[%emt 0:00:06]} 3. Bc4 {[%emt 0:00:18]} Bc5 {[%emt 0:00:09]} 4. c3 {[%emt 0:00:14]} Nf6 {[%emt 0:00:07]} 5. d3 {[%emt 0:00:11]} d6 {[%emt 0:00:42]} 6. Nbd2 {[%emt 0:01:13][%cal Bb1d2,Bd2f1,Bf1g3][%mdl 32]} a5 {[%emt 0:01:56] C54: Giuoco Piano: 4 c3 Nf6, main lines with 5 d4 and 5 d3.} 7. Bb3 {[%emt 0:00:49]} h6 {[%emt 0:01:04]} 8. a4 {[%emt 0:03:24]} Ba7 {[%emt 0:02:01]} 9. h3 {[%emt 0:04:03]} Ne7 {[%emt 0:01:42]} 10. Nf1 {[%emt 0:03:42]} Ng6 {[%emt 0:02:28]} 11. Ng3 {[%emt 0:01:03] [#]} c6 $146 {[%emt 0:02:10]} ({Predecessor:} 11... O-O 12. O-O d5 13. Be3 Bxe3 14. fxe3 Be6 15. Bc2 Ra6 16. d4 Nxe4 17. Nxe4 dxe4 18. Bxe4 {0-1 (44) Andias,J (2039)-Kowalski,I (2296) Lisbon 2019}) 12. O-O {[%emt 0:01:54]} O-O {[%emt 0:01:03]} 13. Bc2 {[%emt 0:06:30]} d5 {[%emt 0:03:59]} 14. d4 {[%emt 0:02:59]} Nxe4 {[%emt 0:02:41]} 15. Nxe4 {[%emt 0:01:39]} dxe4 {[%emt 0:00:09]} 16. Nxe5 {[%emt 0:07:29]} Nxe5 {[%emt 0:01:53]} 17. dxe5 {[%emt 0:00:08]} Qh4 {[%emt 0:05:16][%cal Oc8h3]} 18. Qe1 {[%emt 0:10:36]} Bxh3 {[%emt 0:05:19][%cal Of7f5] ...f5! is the strong threat.} 19. gxh3 {[%emt 0:08:25]} (19. Qxe4 $15 Qxe4 20. Bxe4) 19... Qg3+ $1 $19 {[%emt 0:02:09]} 20. Kh1 {[%emt 0:00:05]} Qxh3+ {[%emt 0:00:12]} 21. Kg1 {[%emt 0:00:05] [#]} f5 {[%emt 0:07:59]} 22. c4 $2 {[%emt 0:12:00]} (22. Qe2 $17) 22... Rad8 $2 {[%emt 0:16:18]} (22... Qg4+ $19 {has better winning chances.} 23. Kh2 Bd4) 23. Ra3 $17 {[%emt 0:04:33] [#]} Rd3 {[%emt 0:01:32]} 24. Bxd3 {[%emt 0:04:36]} exd3 {[%emt 0:00:36]} 25. Bf4 {[%emt 0:14:20]} (25. Qxa5 f4 26. Bxf4 (26. Qxa7 $2 f3 27. Rxd3 Qg2#) 26... Qg4+ 27. Kh1 Qf3+ 28. Kg1 Qxf4 $19) 25... Qg4+ {[%emt 0:09:47]} 26. Kh1 {[%emt 0:00:05]} Qf3+ {[%emt 0:01:14]} 27. Kg1 {[%emt 0:00:05]} Re8 {[%emt 0:07:12] ( -> ...Re6)} 28. Qxa5 $2 {[%emt 0:06:57][%mdl 8192]} (28. e6 $17 {is a better defense.}) 28... Re6 $2 {[%emt 0:04:33]} 29. Qxa7 $11 {[%emt 0:00:35] The position is equal.} Rg6+ {[%emt 0:00:29]} 30. Bg3 {[%emt 0:00:05]} f4 {[%emt 0:03:21][%mdl 64] Pin} 31. Qb8+ {[%emt 0:00:54]} ({But not} 31. Qxb7 $2 fxg3 32. Qc8+ Kh7 $19) 31... Kh7 {[%emt 0:00:07]} 32. Qf8 {[%emt 0:00:14] And now Qf5 would win.} (32. Qxb7 {gets mated.} fxg3) 32... Rxg3+ {[%emt 0:04:31]} 33. fxg3 {[%emt 0:00:06]} Qxg3+ {[%emt 0:00:16]} 34. Kh1 {[%emt 0:00:06] Black had all chances to win.  Weighted Error Value: White=0.59/Black=0.50} 1/2-1/2

[Event "Slovakia Open Piestany-A 2022"]
[Site "Piestany"]
[Date "2022.07.18"]
[Round "9.4"]
[White "Moksh Amit Doshi"]
[Black "Demchenko, Anton"]
[Result "0-1"]
[ECO "A41"]
[WhiteElo "2409"]
[BlackElo "2653"]
[Annotator "TA"]
[PlyCount "60"]
[EventDate "2022.07.12"]
[EventType "swiss"]
[EventCountry "SVK"]
[SourceTitle "playchess.com"]
[Source "ChessBase"]
[SourceQuality "1"]
[TimeControl "40/5400+30:1800+30"]

{[%evp 9,60,9,12,18,30,9,-2,-20,-22,-40,-39,-39,-36,-64,-67,-81,-67,-78,-52,-51,-47,-86,-90,-107,-118,-112,-137,-131,-79,-142,-145,-146,-139,-128,-136,-147,-133,-226,-235,-220,-155,-254,-278,-685,-658,-957,-954,-945,-937,-29988,-1018,-29989,-29987]} 1. d4 {[%emt 0:14:32]} g6 {[%emt 0:00:09]} 2. c4 {[%emt 0:01:03]} Bg7 {[%emt 0:00:07]} 3. Nf3 {[%emt 0:00:22]} d6 {[%emt 0:01:28]} 4. g3 {[%emt 0:00:24]} c5 {[%emt 0:01:27]} 5. Bg2 {[%emt 0:03:52]} Nc6 {[%emt 0:00:50]} 6. d5 {[%emt 0:03:24] A41: 1 d4 d6: Tartakower System and Modern Defence.} Na5 {[%emt 0:00:22]} 7. Qc2 {[%emt 0:06:46]} Nf6 {[%emt 0:01:10][%cal Ob7b5] [#]} 8. Nbd2 $146 {[%emt 0:01:35] The position is equal.} ({Predecessor:} 8. Nfd2 e6 9. dxe6 Bxe6 10. Qa4+ Nd7 11. Ne4 O-O 12. Bg5 f6 13. Bf4 Nxc4 14. Nxd6 Nxd6 15. Bxd6 {½-½ (68) Malikentzos,S (2352)-Macieja,B (2607) Porto Rio 2014}) 8... b5 {[%emt 0:12:48]} 9. e4 {[%emt 0:00:48]} bxc4 {[%emt 0:04:26]} 10. O-O {[%emt 0:05:34]} Rb8 {[%emt 0:11:23]} 11. Re1 {[%emt 0:02:09]} O-O {[%emt 0:06:56]} 12. Nxc4 {[%emt 0:00:37]} Nxc4 {[%emt 0:00:05]} 13. Qxc4 {[%emt 0:00:10]} e6 {[%emt 0:13:50]} 14. dxe6 $1 {[%emt 0:07:08]} Bxe6 {[%emt 0:00:05]} 15. Qc2 {[%emt 0:00:08]} Ng4 $1 {[%emt 0:01:01]} 16. Rd1 {[%emt 0:15:04]} Ne5 {[%emt 0:01:42]} 17. Ng5 {[%emt 0:07:03]} Bg4 {[%emt 0:08:50]} 18. f3 {[%emt 0:00:06]} h6 {[%emt 0:05:37]} (18... Bc8 $142 19. Rb1 h6) 19. Nxf7 {[%emt 0:03:38]} ({White should try} 19. fxg4 hxg5 20. h3) 19... Nxf7 $17 {[%emt 0:03:09]} ({Not} 19... Rxf7 20. fxg4 c4 21. Rf1 $17) 20. fxg4 {[%emt 0:00:07]} Bd4+ {[%emt 0:00:04]} 21. Kh1 {[%emt 0:00:50]} Ne5 {[%emt 0:00:17][%mdl 1024] Black has strong compensation.} 22. h3 {[%emt 0:02:01]} Qa5 {[%emt 0:03:46] White must now prevent ...Qa6. Black is much more active.} ({Weaker is} 22... Rf2 23. Rd2 Rxd2 24. Qxd2 $17) 23. Qd2 {[%emt 0:03:57]} (23. Rd2 $17) 23... Qa4 $19 {[%emt 0:02:11] Threatens to win with ...Rf2.} 24. Qe1 {[%emt 0:03:42]} g5 {[%emt 0:09:06]} 25. Rd2 {[%emt 0:02:59]} (25. b3 $17 {was forced.} Qa6 26. Be3 Bxa1 27. Rxa1) 25... Rf7 {[%emt 0:01:59]} 26. a3 $2 {[%emt 0:01:16]} (26. Re2) 26... Qb3 {[%emt 0:00:58] Hoping for ...Nd3.} 27. Re2 {[%emt 0:00:55]} Nd3 {[%emt 0:00:55][%csl LRb2,LRe1]} 28. Qd2 {[%emt 0:00:08]} Rbf8 {[%emt 0:02:48][%cal Of7f1] aiming for ...Rf1+!} 29. Rb1 {[%emt 0:00:27] [#]} Ne5 {[%emt 0:01:53]} (29... Rf1+ $142 $1 {[%mdl 512]} 30. Kh2 (30. Bxf1 Rxf1+) 30... Bg1+ 31. Kh1 Be3+ 32. Kh2 Bxd2 33. Rxd2 {[#]} Ne5 $1 34. h4 gxh4 35. Rd3 Qxd3 36. Be3 Nxg4+ 37. Kh3 Qxe3 $1 38. Bf3 Qxf3 39. Kxh4 Nf2 $1 40. Rxf1 Qg4#) 30. Kh2 {[%emt 0:00:34]} Rf2 {[%emt 0:00:32] Weighted Error Value: White=0.98/Black=0.25 (precise)} 0-1

[Event "Slovakia Open Piestany-A 2022"]
[Site "Piestany"]
[Date "2022.07.18"]
[Round "9.5"]
[White "Krasenkow, Michal"]
[Black "Neugebauer, Martin"]
[Result "1/2-1/2"]
[ECO "E12"]
[WhiteElo "2569"]
[BlackElo "2528"]
[Annotator "TA"]
[PlyCount "88"]
[EventDate "2022.07.12"]
[EventType "swiss"]
[EventCountry "SVK"]
[SourceTitle "playchess.com"]
[Source "ChessBase"]
[SourceQuality "1"]
[TimeControl "40/5400+30:1800+30"]

{[%evp 14,88,13,18,18,-8,-5,-8,0,-8,0,0,0,-14,0,-17,0,0,0,0,0,0,0,0,0,0,0,0,0,0,58,45,50,50,50,50,51,66,59,54,58,58,102,104,127,128,29947,29949,29947,29944,12516,326,29949,29940,29944,29943,29967,326,326,326,326,326,326,326,326,326,326,326,326,8,8,8,8,8,8,8,8]} 1. d4 {[%emt 0:00:02]} Nf6 {[%emt 0:07:02]} 2. c4 {[%emt 0:00:28]} e6 {[%emt 0:00:11]} 3. Nf3 {[%emt 0:00:09]} b6 {[%emt 0:00:29]} 4. a3 {[%emt 0:00:23]} Ba6 {[%emt 0:00:32]} 5. Nbd2 {[%emt 0:00:08]} d5 {[%emt 0:01:55]} 6. e3 {[%emt 0:00:54]} Be7 {[%emt 0:06:05]} 7. b4 {[%emt 0:00:36]} O-O {[%emt 0:01:00]} 8. Bb2 {[%emt 0:00:25]} Nbd7 {[%emt 0:06:36] E12: Queen's Indian: Unusual White 4th moves, 4 a3, 4 Nc3 Bb7 5 a3 and 4 Nc3 Bb7 .} 9. cxd5 {[%emt 0:06:09]} Bxf1 {[%emt 0:00:09]} 10. Nxf1 {[%emt 0:02:17] [#]} Nxd5 $146 {[%emt 0:07:56]} ({Predecessor:} 10... exd5 11. Ng3 Re8 12. Ne5 Bd6 13. f4 c5 14. O-O c4 15. b5 a6 16. a4 Qc7 {0-1 (73) Krasenkow,M (2608)-Giri,A (2714) Melilla 2011}) 11. e4 {[%emt 0:03:32]} Nf4 {[%emt 0:01:07]} 12. Ne3 {[%emt 0:00:10]} c5 $1 {[%emt 0:00:42]} 13. g3 {[%emt 0:08:51]} Nh3 {[%emt 0:03:38]} 14. Kf1 {[%emt 0:01:24]} Ng5 {[%emt 0:12:05]} 15. Nxg5 $1 {[%emt 0:04:06]} Bxg5 {[%emt 0:00:37]} 16. f4 {[%emt 0:00:33] Black must now prevent dxc5.} cxd4 {[%emt 0:01:48]} 17. Qxd4 {[%emt 0:02:38][%csl Gb2][%cal Rd4g7]} e5 $1 {[%emt 0:00:29]} 18. Qd5 {[%emt 0:05:42]} exf4 {[%emt 0:14:35]} 19. gxf4 {[%emt 0:00:21]} Bxf4 {[%emt 0:00:12]} 20. Rg1 $40 {[%emt 0:00:46][%mdl 128] White attacks.} Ne5 {[%emt 0:05:31]} 21. Qxd8 {[%emt 0:05:39] Really sharp!} Rfxd8 {[%emt 0:00:58]} ({Black should try} 21... Raxd8 $11 22. Nd5 Bxh2) 22. Nd5 $14 {[%emt 0:00:06]} Rxd5 {[%emt 0:04:51]} 23. exd5 {[%emt 0:01:36]} Rd8 {[%emt 0:04:36]} 24. Rd1 {[%emt 0:12:04]} Bxh2 {[%emt 0:01:46]} 25. Rg2 {[%emt 0:00:25]} Bf4 {[%emt 0:00:06]} 26. Rd4 {[%emt 0:07:47]} Ng6 {[%emt 0:10:56] [#]} 27. Rxg6 {[%emt 0:00:13][%mdl 64] Remove Defender} hxg6 {[%emt 0:00:08]} (27... fxg6 28. Rxf4) 28. Rxf4 {[%emt 0:00:06]} Rxd5 {[%emt 0:00:03]} 29. Rd4 {[%emt 0:00:08] Prevents Rd2.} Rxd4 {[%emt 0:04:07][%mdl 8192]} (29... Rf5+ $16 30. Kg2 g5 31. Rd8+ Kh7) 30. Bxd4 $16 {[%emt 0:00:09] KB-KP} Kf8 {[%emt 0:00:02] [#]} 31. a4 $1 {[%emt 0:00:31]} Ke7 {[%emt 0:00:36]} 32. Bxg7 {[%emt 0:01:58] Bc3 would kill now.} Kd6 $2 {[%emt 0:03:38]} (32... g5 $18 33. Ke2 Ke6) 33. Ke2 {[%emt 0:00:33]} Kd5 {[%emt 0:01:32]} 34. Kd3 {[%emt 0:00:36]} f5 {[%emt 0:00:52]} 35. Bf6 $2 {[%emt 0:06:43]} (35. Bh6 {mates} Ke5 36. b5 f4 37. Bg5 Kf5 38. Bd8 Ke6 39. Ke4 Kd6 40. Kxf4) 35... f4 $18 {[%emt 0:00:11]} 36. Bd8 {[%emt 0:00:39]} f3 {[%emt 0:00:35]} 37. Bh4 {[%emt 0:00:37]} g5 {[%emt 0:00:15][%cal Bg6g5,Bg5g4][%mdl 32]} 38. Bf2 {[%emt 0:14:45]} ({And not} 38. Bxg5 f2 39. Ke2 Kc4 $11) 38... Ke5 {[%emt 0:00:10]} 39. Bg3+ {[%emt 0:12:37]} Kd5 {[%emt 0:00:04] [#]} 40. Be1 $1 {[%emt 0:01:13]} Ke5 {[%emt 0:00:19]} 41. Bf2 $2 {[%emt 0:04:20]} (41. Ke3 $18) 41... Kd5 {[%emt 0:03:40] The position is equal.} 42. Bg3 {[%emt 0:00:27] Strongly threatening Be1.} g4 $1 {[%emt 0:01:02]} 43. Bb8 {[%emt 0:19:26] Threatens to win with Bg3.} f2 {[%emt 0:00:22]} 44. Ke2 {[%emt 0:00:30]} Kc4 {[%emt 0:00:06] Weighted Error Value: White=0.34/Black=0.39} 1/2-1/2

[Event "Slovakia Open Piestany-A 2022"]
[Site "Piestany"]
[Date "2022.07.18"]
[Round "9.6"]
[White "Gretarsson, Helgi Ass"]
[Black "Sahidi, Samir"]
[Result "0-1"]
[ECO "D36"]
[WhiteElo "2472"]
[BlackElo "2462"]
[Annotator "TA"]
[PlyCount "186"]
[EventDate "2022.07.12"]
[EventType "swiss"]
[EventCountry "SVK"]
[SourceTitle "playchess.com"]
[Source "ChessBase"]
[SourceQuality "1"]
[TimeControl "40/5400+30:1800+30"]

{[%evp 33,186,-18,-14,-53,-17,-17,0,-25,-25,-25,1,0,23,22,22,18,22,22,22,23,19,22,42,6,20,0,0,-9,0,0,0,0,0,0,0,-48,-43,-59,-51,-55,-47,-78,-99,-373,0,-8,-8,-8,-8,-8,-8,-8,-8,-8,-8,-8,-8,-8,-8,-8,-8,-8,-8,-8,-8,-8,-8,-8,0,0,0,-8,0,-8,0,-8,-7,-8,-8,-8,0,-8,-8,-8,0,0,0,0,0,0,0,-8,-8,-29939,-29941,-29939,-29941,-29941,-29942,-29942,-29943,-29943,-29943,-29942,-29943,-29950,-29950,-29950,-29950,-29950,-29952,-29952,-29954,-29956,-29958,-29962,-29961,-29966,-29966,-29964,-29961,-29960,-29959,-29965,-29962,-29967,-29968,-29969,-29970,-29969,-29970,-29969,-29971,-29970,-29972,-29968,-29965,-29982,-29983,-29983,-29984,-29984,-29985,-29985,-29986,-29989,-29990,-29995,-29992,-29992,-29993,-29993,-29994,-29994,-29995]} 1. d4 {[%emt 0:00:03]} Nf6 {[%emt 0:00:20]} 2. c4 {[%emt 0:00:05]} e6 {[%emt 0:00:09]} 3. Nc3 {[%emt 0:00:07]} d5 {[%emt 0:01:01]} 4. cxd5 {[%emt 0:00:12]} exd5 {[%emt 0:00:28]} 5. Bg5 {[%emt 0:00:05]} c6 {[%emt 0:01:33]} 6. e3 {[%emt 0:00:06]} Be7 {[%emt 0:04:02]} 7. Bd3 {[%emt 0:00:06]} O-O {[%emt 0:00:11]} 8. Qc2 {[%emt 0:00:04]} h6 {[%emt 0:00:24]} 9. Bh4 {[%emt 0:00:15]} Re8 {[%emt 0:00:23]} 10. Nge2 {[%emt 0:00:07]} Nbd7 {[%emt 0:02:49]} 11. O-O {[%emt 0:00:39]} Ne4 {[%emt 0:01:49]} 12. Bxe7 {[%emt 0:00:56]} Qxe7 {[%emt 0:00:08]} 13. Rae1 {[%emt 0:00:10]} Ndf6 {[%emt 0:06:49]} 14. Nd1 {[%emt 0:04:08]} Bd7 {[%emt 0:05:49]} 15. f3 {[%emt 0:01:17]} Ng5 {[%emt 0:00:53]} 16. Kh1 {[%emt 0:21:47]} Qd6 {[%emt 0:16:03]} 17. Nc1 {[%emt 0:09:01]} b6 {[%emt 0:02:11]} 18. Nb3 {[%emt 0:11:06]} Ne6 {[%emt 0:00:37]} 19. Nc3 {[%emt 0:02:57]} Rac8 {[%emt 0:07:21]} 20. Rd1 {[%emt 0:09:59]} c5 {[%emt 0:14:11]} 21. dxc5 {[%emt 0:01:28]} bxc5 {[%emt 0:06:22]} 22. Bc4 {[%emt 0:18:28]} Bc6 {[%emt 0:00:40]} 23. Ne4 {[%emt 0:00:44]} Nxe4 {[%emt 0:03:54]} 24. fxe4 {[%emt 0:00:05]} d4 {[%emt 0:01:38]} 25. exd4 {[%emt 0:01:22]} cxd4 {[%emt 0:00:11]} 26. Qf2 {[%emt 0:00:08]} Bxe4 {[%emt 0:06:20]} 27. Nxd4 {[%emt 0:04:50]} Qe7 {[%emt 0:05:53]} 28. Bb3 {[%emt 0:00:06]} Kh7 {[%emt 0:00:36]} 29. Nb5 {[%emt 0:11:09]} Red8 {[%emt 0:02:46]} 30. Rde1 {[%emt 0:02:13]} (30. Nxa7 Rxd1 31. Bxd1 Rc5 $17) 30... Qb7 {[%emt 0:02:56]} 31. Nxa7 {[%emt 0:00:50]} Rc7 {[%emt 0:03:00]} 32. Nb5 {[%emt 0:01:18]} Bxg2+ {[%emt 0:00:35]} 33. Qxg2 {[%emt 0:00:01]} Qxb5 {[%emt 0:00:17]} 34. Rg1 {[%emt 0:00:27]} (34. Bxe6 $11 fxe6 35. Rxe6) 34... Ng5 $15 {[%emt 0:01:15]} 35. Rd1 {[%emt 0:00:59]} ({Avoid the trap} 35. h4 $2 Rd4 $1 36. Qg3 (36. Bc2+ $2 f5 $19) 36... Qb4 $1 37. hxg5 (37. Qxc7 $2 Rxh4+ 38. Kg2 Qd2+ 39. Kf1 Rf4+ 40. Qxf4 Qxf4+ 41. Ke2 Qf3+ 42. Kd2 Qf2+ 43. Kc1 Nf3 $19) 37... Rh4+ 38. Kg2 Rg4 $19) 35... Rxd1 {[%emt 0:02:28]} 36. Rxd1 {[%emt 0:00:30]} Qe5 {[%emt 0:01:25]} (36... Re7 $5 {[%cal Re7e2]} 37. Bc2+ g6 $15) 37. Qd5 {[%emt 0:00:39]} Qxb2 {[%emt 0:00:50]} 38. h4 $2 {[%emt 0:00:11][%mdl 8192] [#]} (38. Qd4 $17 {was necessary.} Rc3 39. Qd2 Qxd2 40. Rxd2) 38... Ne6 $2 {[%emt 0:00:30]} (38... Rc3 $1 $19 {[%cal Rc3h3] ( -> ...Rh3+)} 39. Rd2 (39. hxg5 $2 Rh3+ 40. Kg1 Qh2+ 41. Kf1 Qf4+ 42. Ke2 Qh2+ 43. Kf1 Qf4+ 44. Ke2 Qe3+ 45. Kf1 Rf3+ 46. Qxf3 Qxf3+ 47. Ke1 hxg5 $19) 39... Qb1+ 40. Bd1 Ne6) 39. Qd3+ {[%emt 0:00:45]} g6 $1 {[%emt 0:00:19]} 40. Bxe6 {[%emt 0:00:22]} fxe6 {[%emt 0:00:38]} 41. h5 $1 {[%emt 0:00:55]} Qf6 {[%emt 0:05:17]} 42. Qxg6+ {[%emt 0:11:36]} Qxg6 {[%emt 0:00:14]} 43. hxg6+ {[%emt 0:00:01]} Kxg6 {[%emt 0:00:10]} 44. Ra1 {[%emt 0:00:01]} Ra7 {[%emt 0:02:24]} 45. a4 $1 {[%emt 0:00:04]} Ra5 {[%emt 0:00:14]} 46. Kg2 {[%emt 0:00:06]} Kf6 {[%emt 0:02:14]} 47. Kf3 {[%emt 0:00:12]} h5 {[%emt 0:01:06]} 48. Rh1 {[%emt 0:01:03]} Ke7 {[%emt 0:02:43]} 49. Ra1 {[%emt 0:09:32]} Kd6 {[%emt 0:02:40]} 50. Ra2 {[%emt 0:02:41]} Rf5+ {[%emt 0:04:41]} 51. Kg3 {[%emt 0:02:11]} Ra5 {[%emt 0:03:36]} 52. Kf3 {[%emt 0:00:06]} Ke7 {[%emt 0:01:28]} 53. Ra1 {[%emt 0:00:51]} Kf6 {[%emt 0:00:06]} 54. Rh1 {[%emt 0:00:49]} e5 {[%emt 0:00:51]} 55. Ra1 {[%emt 0:01:51]} Ke6 {[%emt 0:01:31]} 56. Rh1 {[%emt 0:01:07]} Kf6 {[%emt 0:02:13]} 57. Ra1 {[%emt 0:00:09]} Kf5 {[%emt 0:01:10]} 58. Rh1 {[%emt 0:00:09]} e4+ {[%emt 0:00:12]} 59. Ke3 {[%emt 0:00:13]} Kg4 {[%emt 0:00:08]} 60. Rg1+ {[%emt 0:02:57]} Kh3 {[%emt 0:00:22]} 61. Ra1 {[%emt 0:02:16]} h4 {[%emt 0:01:14]} 62. Kxe4 {[%emt 0:01:39]} Kg3 {[%emt 0:00:35]} 63. Rg1+ $2 {[%emt 0:00:27][%mdl 8192]} (63. Ra3+ $11 Kg4 64. Ke3) 63... Kf2 {[%emt 0:00:56]} 64. Ra1 {[%emt 0:01:01]} h3 {[%emt 0:00:15]} 65. Kf4 {[%emt 0:00:42]} h2 {[%emt 0:00:26]} 66. Ra2+ {[%emt 0:00:32]} Kg1 {[%emt 0:00:11]} 67. Ra1+ {[%emt 0:00:32]} Kg2 {[%emt 0:00:27]} 68. Ra2+ {[%emt 0:00:28]} Kh3 {[%emt 0:00:23]} 69. Ra3+ {[%emt 0:00:10]} Kh4 {[%emt 0:00:17]} 70. Ra1 {[%emt 0:00:01]} Rxa4+ {[%emt 0:01:51]} 71. Rxa4 {[%emt 0:00:01]} h1=Q {[%emt 0:00:12]} 72. Re4 {[%emt 0:00:30]} Qf1+ {[%emt 0:00:37]} 73. Ke5+ {[%emt 0:00:00]} Kg5 {[%emt 0:00:06]} 74. Rd4 {[%emt 0:00:00]} Qf5+ {[%emt 0:01:04]} 75. Kd6 {[%emt 0:00:00]} Kf6 {[%emt 0:00:10]} 76. Rd5 {[%emt 0:00:15]} Qf4+ {[%emt 0:00:34]} 77. Kc5 {[%emt 0:00:18]} Ke6 {[%emt 0:00:26]} 78. Rd4 {[%emt 0:00:10]} Qc1+ {[%emt 0:00:45]} 79. Kb4 {[%emt 0:00:19]} Ke5 {[%emt 0:01:12]} 80. Rd3 {[%emt 0:01:03]} Qb2+ {[%emt 0:00:20]} 81. Kc4 {[%emt 0:00:02]} Qc2+ {[%emt 0:00:27]} 82. Rc3 {[%emt 0:00:05]} Qe4+ {[%emt 0:00:11]} 83. Kb5 {[%emt 0:01:14]} Kd6 {[%emt 0:00:23]} 84. Rc4 {[%emt 0:00:39]} Qb1+ {[%emt 0:00:38]} 85. Rb4 {[%emt 0:00:34]} Qd3+ {[%emt 0:00:23]} 86. Kb6 {[%emt 0:00:11]} Qd5 {[%emt 0:00:50]} 87. Rb5 {[%emt 0:02:53]} Qd4+ {[%emt 0:00:21]} 88. Kb7 {[%emt 0:00:26]} Kd7 {[%emt 0:00:35]} 89. Kb8 {[%emt 0:01:31]} Kc6 {[%emt 0:00:45]} 90. Rb1 {[%emt 0:00:04]} Qd8+ {[%emt 0:01:34]} 91. Ka7 {[%emt 0:00:02]} Qe7+ {[%emt 0:00:11]} 92. Kb8 {[%emt 0:00:52]} Qf8+ {[%emt 0:00:07]} 93. Ka7 {[%emt 0:00:06]} Qf7+ {[%emt 0:00:18]} 0-1